[Event "Titled Tuesday Blitz February 28 Late 2023"]
[White "Mendez Fortes, Eduardo Jesus"]
[Black "Yuan, Qingyu"]
[WhiteFideId "3502376"]
[BlackFideId "8609772"]
[WhiteElo "2307"]
[BlackElo "2359"]
[Result "1-0"]
[Round "02"]
[TimeControl "180+2"]
[Date "2023.02.28"]
[WhiteClock "0:00:05"]
[BlackClock "0:00:03"]

1. e4 {[%clk 0:03:00]}  e5 {[%clk 0:02:59]} 2. Nf3 {[%clk 0:03:00]}  Nc6 {[%clk 0:03:00]} 3. Bb5 {[%clk 0:03:00]}  Nf6 {[%clk 0:03:00]} 4. O-O {[%clk 0:02:57]}  Nxe4 {[%clk 0:03:01]} 5. Re1 {[%clk 0:02:56]}  Nd6 {[%clk 0:03:01]} 6. Nxe5 {[%clk 0:02:55]}  Be7 {[%clk 0:03:01]} 7. Bf1 {[%clk 0:02:53]}  Nxe5 {[%clk 0:03:02]} 8. Rxe5 {[%clk 0:02:52]}  O-O {[%clk 0:03:02]} 9. Nc3 {[%clk 0:02:52]}  Ne8 {[%clk 0:03:01]} 10. Nd5 {[%clk 0:02:37]}  Bd6 {[%clk 0:03:01]} 11. Re1 {[%clk 0:02:35]}  c6 {[%clk 0:03:01]} 12. Ne3 {[%clk 0:02:31]}  Be7 {[%clk 0:03:02]} 13. c4 {[%clk 0:02:21]}  Nc7 {[%clk 0:03:01]} 14. Nf5 {[%clk 0:02:19]}  Bf6 {[%clk 0:02:19]} 15. Nd6 {[%clk 0:02:14]}  Ne8 {[%clk 0:02:19]} 16. Ne4 {[%clk 0:02:13]}  Bd4 {[%clk 0:01:59]} 17. Qf3 {[%clk 0:01:56]}  d5 {[%clk 0:01:55]} 18. cxd5 {[%clk 0:01:56]}  cxd5 {[%clk 0:01:44]} 19. Nc3 {[%clk 0:01:56]}  Nf6 {[%clk 0:01:44]} 20. h3 {[%clk 0:01:47]}  a6 {[%clk 0:01:32]} 21. d3 {[%clk 0:01:37]}  h6 {[%clk 0:01:25]} 22. Ne2 {[%clk 0:01:33]}  Ba7 {[%clk 0:01:17]} 23. Be3 {[%clk 0:01:33]}  Bxe3 {[%clk 0:01:00]} 24. Qxe3 {[%clk 0:01:34]}  Bf5 {[%clk 0:00:55]} 25. Qd4 {[%clk 0:01:23]}  Re8 {[%clk 0:00:49]} 26. Nc3 {[%clk 0:01:22]}  Qd6 {[%clk 0:00:49]} 27. g3 {[%clk 0:01:12]}  Qd7 {[%clk 0:00:44]} 28. Kh2 {[%clk 0:01:11]}  Rad8 {[%clk 0:00:33]} 29. Bg2 {[%clk 0:01:10]}  Rxe1 {[%clk 0:00:23]} 30. Rxe1 {[%clk 0:01:11]}  Be6 {[%clk 0:00:18]} 31. f4 {[%clk 0:01:04]}  Qd6 {[%clk 0:00:16]} 32. Re5 {[%clk 0:00:57]}  Nd7 {[%clk 0:00:15]} 33. Re1 {[%clk 0:00:50]}  Qc5 {[%clk 0:00:13]} 34. Ne2 {[%clk 0:00:48]}  Qxd4 {[%clk 0:00:13]} 35. Nxd4 {[%clk 0:00:49]}  Nf8 {[%clk 0:00:12]} 36. Rc1 {[%clk 0:00:45]}  g6 {[%clk 0:00:05]} 37. g4 {[%clk 0:00:43]}  Kg7 {[%clk 0:00:02]} 38. Kg3 {[%clk 0:00:37]}  Kf6 {[%clk 0:00:02]} 39. h4 {[%clk 0:00:36]}  g5 {[%clk 0:00:02]} 40. fxg5+ {[%clk 0:00:34]}  hxg5 {[%clk 0:00:03]} 41. Rf1+ {[%clk 0:00:34]}  Kg6 {[%clk 0:00:04]} 42. h5+ {[%clk 0:00:30]}  Kg7 {[%clk 0:00:04]} 43. Rc1 {[%clk 0:00:29]}  Nd7 {[%clk 0:00:04]} 44. Rc7 {[%clk 0:00:28]}  Kf6 {[%clk 0:00:04]} 45. Rxb7 {[%clk 0:00:27]}  Nc5 {[%clk 0:00:05]} 46. Rb6 {[%clk 0:00:20]}  Nxd3 {[%clk 0:00:05]} 47. Bf1 {[%clk 0:00:17]}  Ne5 {[%clk 0:00:05]} 48. Be2 {[%clk 0:00:16]}  Rc8 {[%clk 0:00:05]} 49. Bxa6 {[%clk 0:00:13]}  Rc1 {[%clk 0:00:05]} 50. Be2 {[%clk 0:00:13]}  Ra1 {[%clk 0:00:03]} 51. a3 {[%clk 0:00:12]}  Nc4 {[%clk 0:00:02]} 52. Bxc4 {[%clk 0:00:12]}  dxc4 {[%clk 0:00:03]} 53. h6 {[%clk 0:00:11]}  Rh1 {[%clk 0:00:03]} 54. Nf5 {[%clk 0:00:10]}  Ke5 {[%clk 0:00:03]} 55. a4 {[%clk 0:00:09]}  Bxf5 {[%clk 0:00:03]} 56. gxf5 {[%clk 0:00:09]}  Kxf5 {[%clk 0:00:04]} 57. a5 {[%clk 0:00:09]}  Ke4 {[%clk 0:00:04]} 58. a6 {[%clk 0:00:07]}  f5 {[%clk 0:00:04]} 59. a7 {[%clk 0:00:06]}  f4+ {[%clk 0:00:04]} 60. Kg2 {[%clk 0:00:05]}  Ra1 {[%clk 0:00:05]} 61. h7 {[%clk 0:00:05]}  f3+ {[%clk 0:00:05]} 62. Kf2 {[%clk 0:00:05]}  Rxa7 {[%clk 0:00:02]} 63. h8=Q {[%clk 0:00:04]}  g4 {[%clk 0:00:02]} 64. Qe8+ {[%clk 0:00:04]}  Kf5 {[%clk 0:00:02]} 65. Rb5+ {[%clk 0:00:05]}  Kf6 {[%clk 0:00:02]} 66. Qe5+ {[%clk 0:00:04]}  Kf7 {[%clk 0:00:02]} 67. Qf5+ {[%clk 0:00:04]}  Ke8 {[%clk 0:00:02]} 68. Qe6+ {[%clk 0:00:03]}  Kf8 {[%clk 0:00:02]} 69. Rf5+ {[%clk 0:00:04]}  Kg7 {[%clk 0:00:03]} 70. Qf6+ {[%clk 0:00:04]}  Kg8 {[%clk 0:00:03]} 71. Rg5+ {[%clk 0:00:04]}  Kh7 {[%clk 0:00:03]} 72. Qg6+ {[%clk 0:00:05]} 1-0


[Site "https://www.chess.com"]

[Event "Titled Tuesday Blitz February 28 Late 2023"]
[White "Dourerassou, Jonathan"]
[Black "Ponce Cano, Adrian"]
[WhiteFideId "628050"]
[BlackFideId "22296913"]
[WhiteElo "2499"]
[BlackElo "2211"]
[Result "1-0"]
[Round "02"]
[TimeControl "180+2"]
[Date "2023.02.28"]
[WhiteClock "0:01:23"]
[BlackClock "0:01:07"]

1. d4 {[%clk 0:02:57]}  d5 {[%clk 0:02:59]} 2. Nf3 {[%clk 0:02:56]}  c6 {[%clk 0:02:59]} 3. Bf4 {[%clk 0:02:55]}  Nf6 {[%clk 0:02:59]} 4. e3 {[%clk 0:02:55]}  Bf5 {[%clk 0:02:59]} 5. Nbd2 {[%clk 0:02:54]}  e6 {[%clk 0:03:00]} 6. h3 {[%clk 0:02:54]}  Bd6 {[%clk 0:02:59]} 7. Ne5 {[%clk 0:02:51]}  Ne4 {[%clk 0:02:54]} 8. c3 {[%clk 0:02:40]}  Nxd2 {[%clk 0:02:47]} 9. Qxd2 {[%clk 0:02:40]}  f6 {[%clk 0:02:47]} 10. Nd3 {[%clk 0:02:39]}  O-O {[%clk 0:02:45]} 11. Be2 {[%clk 0:02:35]}  Bxd3 {[%clk 0:02:44]} 12. Bxd3 {[%clk 0:02:35]}  Bxf4 {[%clk 0:02:44]} 13. exf4 {[%clk 0:02:36]}  Qc7 {[%clk 0:02:41]} 14. O-O {[%clk 0:02:35]}  Nd7 {[%clk 0:02:41]} 15. Rae1 {[%clk 0:02:34]}  Rae8 {[%clk 0:02:41]} 16. Re2 {[%clk 0:02:17]}  e5 {[%clk 0:02:31]} 17. fxe5 {[%clk 0:02:17]}  fxe5 {[%clk 0:02:32]} 18. dxe5 {[%clk 0:02:17]}  Rxe5 {[%clk 0:02:31]} 19. Rfe1 {[%clk 0:02:10]}  Qd6 {[%clk 0:02:14]} 20. c4 {[%clk 0:02:07]}  Rfe8 {[%clk 0:02:11]} 21. Qf4 {[%clk 0:02:03]}  Qf6 {[%clk 0:01:55]} 22. Qxf6 {[%clk 0:01:48]}  gxf6 {[%clk 0:01:55]} 23. cxd5 {[%clk 0:01:47]}  cxd5 {[%clk 0:01:52]} 24. Kf1 {[%clk 0:01:46]}  Kg7 {[%clk 0:01:50]} 25. Rc1 {[%clk 0:01:45]}  Rxe2 {[%clk 0:01:43]} 26. Bxe2 {[%clk 0:01:46]}  Re7 {[%clk 0:01:43]} 27. Rc7 {[%clk 0:01:46]}  b6 {[%clk 0:01:34]} 28. Rxa7 {[%clk 0:01:45]}  Kf8 {[%clk 0:01:32]} 29. Rb7 {[%clk 0:01:39]}  h6 {[%clk 0:01:31]} 30. Bb5 {[%clk 0:01:37]}  Nc5 {[%clk 0:01:24]} 31. Rxb6 {[%clk 0:01:37]}  d4 {[%clk 0:01:23]} 32. Rxf6+ {[%clk 0:01:36]}  Kg7 {[%clk 0:01:23]} 33. Rd6 {[%clk 0:01:35]}  Rb7 {[%clk 0:01:11]} 34. a4 {[%clk 0:01:32]}  d3 {[%clk 0:01:11]} 35. b4 {[%clk 0:01:26]}  Nxa4 {[%clk 0:01:07]} 36. Bxa4 {[%clk 0:01:25]}  Rxb4 {[%clk 0:01:07]} 37. Bd1 {[%clk 0:01:23]} 1-0


[Site "https://www.chess.com"]

[Event "Titled Tuesday Blitz February 28 Late 2023"]
[White "Meissner, Felix"]
[Black "Bilych, Olexiy"]
[WhiteFideId "24671827"]
[BlackFideId "14156504"]
[WhiteElo "2350"]
[BlackElo "2320"]
[Result "0-1"]
[Round "02"]
[TimeControl "180+2"]
[Date "2023.02.28"]
[WhiteClock "0:00:24"]
[BlackClock "0:00:41"]

1. e4 {[%clk 0:03:00]}  c5 {[%clk 0:02:57]} 2. Nf3 {[%clk 0:03:00]}  d6 {[%clk 0:02:58]} 3. d4 {[%clk 0:03:00]}  cxd4 {[%clk 0:02:58]} 4. Nxd4 {[%clk 0:03:01]}  Nf6 {[%clk 0:02:59]} 5. f3 {[%clk 0:03:01]}  e5 {[%clk 0:02:54]} 6. Bb5+ {[%clk 0:03:01]}  Nbd7 {[%clk 0:02:39]} 7. Nf5 {[%clk 0:03:01]}  a6 {[%clk 0:02:39]} 8. Bxd7+ {[%clk 0:02:59]}  Qxd7 {[%clk 0:02:38]} 9. Bg5 {[%clk 0:02:59]}  Nh5 {[%clk 0:02:08]} 10. Nc3 {[%clk 0:02:51]}  h6 {[%clk 0:02:07]} 11. Bh4 {[%clk 0:02:43]}  g6 {[%clk 0:02:06]} 12. Ne3 {[%clk 0:02:35]}  Bg7 {[%clk 0:02:05]} 13. Nc4 {[%clk 0:02:27]}  O-O {[%clk 0:01:57]} 14. Nb6 {[%clk 0:02:14]}  Qc6 {[%clk 0:01:56]} 15. Nxa8 {[%clk 0:02:09]}  Be6 {[%clk 0:01:53]} 16. Nd5 {[%clk 0:02:06]}  Bxd5 {[%clk 0:01:39]} 17. exd5 {[%clk 0:01:54]}  Qb5 {[%clk 0:01:29]} 18. Be7 {[%clk 0:00:53]}  Rxa8 {[%clk 0:01:24]} 19. b3 {[%clk 0:00:43]}  Nf4 {[%clk 0:01:04]} 20. Qd2 {[%clk 0:00:36]}  e4 {[%clk 0:00:46]} 21. Rd1 {[%clk 0:00:24]}  e3 {[%clk 0:00:41]} 0-1


[Site "https://www.chess.com"]

[Event "Titled Tuesday Blitz February 28 Late 2023"]
[White "Pulpan, Jakub"]
[Black "Le Goff, Ronan"]
[WhiteFideId "302759"]
[BlackFideId "612073"]
[WhiteElo "2484"]
[BlackElo "2275"]
[Result "1-0"]
[Round "02"]
[TimeControl "180+2"]
[Date "2023.02.28"]
[WhiteClock "0:00:15"]
[BlackClock "0:00:12"]

1. Nf3 {[%clk 0:02:51]}  Nf6 {[%clk 0:02:48]} 2. b3 {[%clk 0:02:50]}  d5 {[%clk 0:02:48]} 3. Bb2 {[%clk 0:02:51]}  Bg4 {[%clk 0:02:48]} 4. g3 {[%clk 0:02:51]}  Bxf3 {[%clk 0:02:47]} 5. exf3 {[%clk 0:02:52]}  e6 {[%clk 0:02:45]} 6. Bg2 {[%clk 0:02:52]}  g6 {[%clk 0:02:44]} 7. O-O {[%clk 0:02:53]}  Bg7 {[%clk 0:02:45]} 8. d3 {[%clk 0:02:53]}  O-O {[%clk 0:02:45]} 9. Nd2 {[%clk 0:02:50]}  a5 {[%clk 0:02:45]} 10. a3 {[%clk 0:02:48]}  Nbd7 {[%clk 0:02:37]} 11. c4 {[%clk 0:02:47]}  c6 {[%clk 0:02:37]} 12. Qc2 {[%clk 0:02:45]}  Rc8 {[%clk 0:02:35]} 13. f4 {[%clk 0:02:39]}  b5 {[%clk 0:02:23]} 14. Rad1 {[%clk 0:02:37]}  Qb6 {[%clk 0:02:20]} 15. Nf3 {[%clk 0:02:36]}  a4 {[%clk 0:02:19]} 16. b4 {[%clk 0:02:32]}  c5 {[%clk 0:02:15]} 17. bxc5 {[%clk 0:02:26]}  Qxc5 {[%clk 0:02:02]} 18. Ne5 {[%clk 0:01:48]}  bxc4 {[%clk 0:01:48]} 19. Nxd7 {[%clk 0:01:46]}  Nxd7 {[%clk 0:01:46]} 20. Bxg7 {[%clk 0:01:45]}  Kxg7 {[%clk 0:01:45]} 21. Qxa4 {[%clk 0:01:45]}  Nb6 {[%clk 0:01:43]} 22. Qc2 {[%clk 0:01:41]}  Qxa3 {[%clk 0:01:37]} 23. Ra1 {[%clk 0:01:35]}  Qb3 {[%clk 0:01:21]} 24. Qxb3 {[%clk 0:01:18]}  cxb3 {[%clk 0:01:21]} 25. Rfb1 {[%clk 0:01:18]}  Rc3 {[%clk 0:01:18]} 26. Ra3 {[%clk 0:01:19]}  Rxd3 {[%clk 0:01:14]} 27. Bf1 {[%clk 0:01:19]}  Rc3 {[%clk 0:01:10]} 28. Kg2 {[%clk 0:01:17]}  Nc4 {[%clk 0:01:05]} 29. Raxb3 {[%clk 0:01:17]}  Rxb3 {[%clk 0:01:05]} 30. Rxb3 {[%clk 0:01:18]}  Nd2 {[%clk 0:01:06]} 31. Rb7 {[%clk 0:01:19]}  Nxf1 {[%clk 0:01:06]} 32. Kxf1 {[%clk 0:01:20]}  h5 {[%clk 0:01:05]} 33. h4 {[%clk 0:01:19]}  Kf6 {[%clk 0:01:05]} 34. Ke2 {[%clk 0:01:18]}  Ra8 {[%clk 0:01:03]} 35. Ke3 {[%clk 0:01:16]}  Ra3+ {[%clk 0:01:02]} 36. Ke2 {[%clk 0:01:16]}  Ra6 {[%clk 0:00:59]} 37. Rd7 {[%clk 0:01:15]}  Rc6 {[%clk 0:00:57]} 38. Kf3 {[%clk 0:01:12]}  Ra6 {[%clk 0:00:55]} 39. Ke3 {[%clk 0:01:12]}  Kg7 {[%clk 0:00:56]} 40. Rd8 {[%clk 0:01:10]}  Ra7 {[%clk 0:00:55]} 41. Kf3 {[%clk 0:01:01]}  Kf6 {[%clk 0:00:55]} 42. Kg2 {[%clk 0:00:48]}  Ke7 {[%clk 0:00:54]} 43. Rb8 {[%clk 0:00:47]}  Rd7 {[%clk 0:00:54]} 44. Kf3 {[%clk 0:00:47]}  Kd6 {[%clk 0:00:51]} 45. Ke3 {[%clk 0:00:46]}  Rc7 {[%clk 0:00:45]} 46. Rd8+ {[%clk 0:00:43]}  Kc5 {[%clk 0:00:43]} 47. Ra8 {[%clk 0:00:44]}  Rb7 {[%clk 0:00:41]} 48. Rc8+ {[%clk 0:00:43]}  Kb4 {[%clk 0:00:39]} 49. Kd4 {[%clk 0:00:42]}  Kb5 {[%clk 0:00:37]} 50. f3 {[%clk 0:00:33]}  Kb6 {[%clk 0:00:37]} 51. g4 {[%clk 0:00:33]}  Rc7 {[%clk 0:00:35]} 52. Rb8+ {[%clk 0:00:30]}  Ka7 {[%clk 0:00:34]} 53. Rh8 {[%clk 0:00:31]}  hxg4 {[%clk 0:00:31]} 54. fxg4 {[%clk 0:00:32]}  Rc4+ {[%clk 0:00:31]} 55. Ke3 {[%clk 0:00:31]}  Rc3+ {[%clk 0:00:26]} 56. Kd4 {[%clk 0:00:17]}  Rf3 {[%clk 0:00:25]} 57. Ke5 {[%clk 0:00:17]}  Re3+ {[%clk 0:00:24]} 58. Kf6 {[%clk 0:00:18]}  Re4 {[%clk 0:00:21]} 59. Kg5 {[%clk 0:00:18]}  d4 {[%clk 0:00:17]} 60. h5 {[%clk 0:00:18]}  gxh5 {[%clk 0:00:16]} 61. gxh5 {[%clk 0:00:19]}  d3 {[%clk 0:00:16]} 62. Rd8 {[%clk 0:00:19]}  Re3 {[%clk 0:00:15]} 63. Kg4 {[%clk 0:00:18]}  e5 {[%clk 0:00:11]} 64. h6 {[%clk 0:00:15]}  exf4 {[%clk 0:00:10]} 65. h7 {[%clk 0:00:12]}  Rg3+ {[%clk 0:00:10]} 66. Kxf4 {[%clk 0:00:12]}  Rh3 {[%clk 0:00:11]} 67. h8=Q {[%clk 0:00:13]}  Rxh8 {[%clk 0:00:11]} 68. Rxh8 {[%clk 0:00:14]}  Kb6 {[%clk 0:00:11]} 69. Rd8 {[%clk 0:00:15]}  Kc5 {[%clk 0:00:12]} 70. Rxd3 {[%clk 0:00:15]} 1-0


[Site "https://www.chess.com"]

[Event "Titled Tuesday Blitz February 28 Late 2023"]
[White "Mujumdar, Sameer"]
[Black "Msellek, Ilyass"]
[WhiteFideId "2029707"]
[BlackFideId "675938"]
[WhiteElo "2104"]
[BlackElo "2303"]
[Result "0-1"]
[Round "02"]
[TimeControl "180+2"]
[Date "2023.02.28"]
[WhiteClock "0:00:07"]
[BlackClock "0:00:22"]

1. d4 {[%clk 0:03:00]}  d5 {[%clk 0:02:53]} 2. c4 {[%clk 0:03:00]}  c6 {[%clk 0:02:54]} 3. Nf3 {[%clk 0:03:00]}  Nf6 {[%clk 0:02:55]} 4. Nbd2 {[%clk 0:03:00]}  g6 {[%clk 0:02:52]} 5. e3 {[%clk 0:03:00]}  Bg7 {[%clk 0:02:52]} 6. Bd3 {[%clk 0:03:00]}  O-O {[%clk 0:02:53]} 7. O-O {[%clk 0:03:01]}  Bf5 {[%clk 0:02:54]} 8. Qc2 {[%clk 0:03:00]}  Bxd3 {[%clk 0:02:51]} 9. Qxd3 {[%clk 0:03:00]}  Nbd7 {[%clk 0:02:52]} 10. b3 {[%clk 0:03:00]}  a5 {[%clk 0:02:50]} 11. Bb2 {[%clk 0:02:57]}  a4 {[%clk 0:02:50]} 12. Rfe1 {[%clk 0:02:51]}  Qb6 {[%clk 0:02:49]} 13. Ba3 {[%clk 0:02:40]}  Rfe8 {[%clk 0:02:46]} 14. Rab1 {[%clk 0:02:33]}  Qc7 {[%clk 0:02:34]} 15. Bb4 {[%clk 0:02:25]}  b6 {[%clk 0:02:15]} 16. e4 {[%clk 0:02:14]}  c5 {[%clk 0:02:11]} 17. Bc3 {[%clk 0:02:10]}  dxe4 {[%clk 0:02:04]} 18. Nxe4 {[%clk 0:02:09]}  Nxe4 {[%clk 0:02:03]} 19. Qxe4 {[%clk 0:02:08]}  cxd4 {[%clk 0:02:00]} 20. Bxd4 {[%clk 0:02:07]}  e5 {[%clk 0:02:01]} 21. Be3 {[%clk 0:01:57]}  Nc5 {[%clk 0:02:01]} 22. Bxc5 {[%clk 0:01:55]}  Qxc5 {[%clk 0:02:02]} 23. b4 {[%clk 0:01:55]}  Qc7 {[%clk 0:02:01]} 24. a3 {[%clk 0:01:55]}  Rad8 {[%clk 0:02:00]} 25. Qc2 {[%clk 0:01:52]}  f5 {[%clk 0:01:59]} 26. Rbd1 {[%clk 0:01:48]}  e4 {[%clk 0:01:59]} 27. Ng5 {[%clk 0:01:46]}  Qe7 {[%clk 0:01:51]} 28. Nh3 {[%clk 0:01:38]}  Bd4 {[%clk 0:01:23]} 29. Qxa4 {[%clk 0:01:30]}  e3 {[%clk 0:01:04]} 30. fxe3 {[%clk 0:01:27]}  Bxe3+ {[%clk 0:01:05]} 31. Kf1 {[%clk 0:01:10]}  Rxd1 {[%clk 0:01:06]} 32. Rxd1 {[%clk 0:01:09]}  Qe4 {[%clk 0:00:58]} 33. Qd7 {[%clk 0:00:58]}  Re5 {[%clk 0:00:31]} 34. Qd3 {[%clk 0:00:54]}  Qg4 {[%clk 0:00:29]} 35. Re1 {[%clk 0:00:51]}  f4 {[%clk 0:00:26]} 36. Nf2 {[%clk 0:00:49]}  Qh4 {[%clk 0:00:25]} 37. Nh3 {[%clk 0:00:39]}  Kg7 {[%clk 0:00:24]} 38. Qd7+ {[%clk 0:00:37]}  Re7 {[%clk 0:00:25]} 39. Qd3 {[%clk 0:00:31]}  g5 {[%clk 0:00:23]} 40. Qd6 {[%clk 0:00:23]}  g4 {[%clk 0:00:22]} 41. Rxe3 {[%clk 0:00:15]}  fxe3 {[%clk 0:00:21]} 42. Qd4+ {[%clk 0:00:08]}  Qf6+ {[%clk 0:00:21]} 43. Qxf6+ {[%clk 0:00:06]}  Kxf6 {[%clk 0:00:22]} 44. Ke2 {[%clk 0:00:07]}  gxh3 {[%clk 0:00:22]} 0-1


[Site "https://www.chess.com"]

[Event "Titled Tuesday Blitz February 28 Late 2023"]
[White "Golubka, Petro"]
[Black "Rego, Pedro Filipe"]
[WhiteFideId "14114224"]
[BlackFideId "1904310"]
[WhiteElo "2404"]
[BlackElo "2193"]
[Result "1-0"]
[Round "02"]
[TimeControl "180+2"]
[Date "2023.02.28"]
[WhiteClock "0:00:14"]
[BlackClock "0:00:19"]

1. e4 {[%clk 0:02:29]}  c5 {[%clk 0:02:59]} 2. b4 {[%clk 0:02:26]}  cxb4 {[%clk 0:02:53]} 3. a3 {[%clk 0:02:27]}  bxa3 {[%clk 0:02:52]} 4. Bxa3 {[%clk 0:02:25]}  d6 {[%clk 0:02:52]} 5. d4 {[%clk 0:02:24]}  g6 {[%clk 0:02:51]} 6. c3 {[%clk 0:02:24]}  Bg7 {[%clk 0:02:52]} 7. Nf3 {[%clk 0:02:25]}  Nf6 {[%clk 0:02:52]} 8. Bd3 {[%clk 0:02:25]}  O-O {[%clk 0:02:52]} 9. Nbd2 {[%clk 0:02:26]}  Nc6 {[%clk 0:02:51]} 10. h3 {[%clk 0:02:07]}  a6 {[%clk 0:02:49]} 11. O-O {[%clk 0:02:05]}  b5 {[%clk 0:02:48]} 12. Re1 {[%clk 0:02:04]}  Bb7 {[%clk 0:02:43]} 13. Bf1 {[%clk 0:02:02]}  Na5 {[%clk 0:02:34]} 14. Bb4 {[%clk 0:02:00]}  Nc6 {[%clk 0:02:31]} 15. Ba3 {[%clk 0:02:00]}  Na5 {[%clk 0:02:30]} 16. d5 {[%clk 0:02:00]}  Bc8 {[%clk 0:02:22]} 17. Bb4 {[%clk 0:01:57]}  Nb7 {[%clk 0:02:22]} 18. Bxb5 {[%clk 0:01:57]}  Qb6 {[%clk 0:02:09]} 19. Bc6 {[%clk 0:01:54]}  Bd7 {[%clk 0:02:08]} 20. Nc4 {[%clk 0:01:44]}  Qc7 {[%clk 0:02:05]} 21. Na5 {[%clk 0:01:43]}  Bxc6 {[%clk 0:02:02]} 22. Nxc6 {[%clk 0:01:42]}  a5 {[%clk 0:01:59]} 23. Ba3 {[%clk 0:01:39]}  Rfe8 {[%clk 0:01:48]} 24. Nfd4 {[%clk 0:01:37]}  Nd7 {[%clk 0:01:48]} 25. Nb5 {[%clk 0:01:36]}  Qc8 {[%clk 0:01:41]} 26. Re3 {[%clk 0:01:07]}  Ne5 {[%clk 0:01:28]} 27. Nbd4 {[%clk 0:01:00]}  Nc4 {[%clk 0:01:27]} 28. Re2 {[%clk 0:00:56]}  Nxa3 {[%clk 0:01:27]} 29. Rxa3 {[%clk 0:00:56]}  Qc7 {[%clk 0:01:14]} 30. Rea2 {[%clk 0:00:55]}  Nc5 {[%clk 0:01:09]} 31. Qc2 {[%clk 0:00:53]}  a4 {[%clk 0:01:09]} 32. g3 {[%clk 0:00:50]}  e6 {[%clk 0:00:58]} 33. Nb5 {[%clk 0:00:48]}  Qd7 {[%clk 0:00:55]} 34. Kg2 {[%clk 0:00:46]}  exd5 {[%clk 0:00:47]} 35. exd5 {[%clk 0:00:47]}  Ra6 {[%clk 0:00:46]} 36. c4 {[%clk 0:00:27]}  Re1 {[%clk 0:00:36]} 37. Qd2 {[%clk 0:00:22]}  Rb1 {[%clk 0:00:31]} 38. Qf4 {[%clk 0:00:21]}  Re1 {[%clk 0:00:25]} 39. Qxd6 {[%clk 0:00:21]}  Qf5 {[%clk 0:00:24]} 40. Qxc5 {[%clk 0:00:18]}  Qb1 {[%clk 0:00:24]} 41. Ne7+ {[%clk 0:00:15]}  Rxe7 {[%clk 0:00:19]} 42. Qxe7 {[%clk 0:00:14]} 1-0


[Site "https://www.chess.com"]